bitfinex/quotes_SOLUSD_20240926
["timestamp","ask_amount","ask_price","bid_price","bid_amount"]
[1727364657688,6.4114,155.98,155.9,0.5156078]
[1727364658008,6.4114,155.98,155.9,1.79824617]
[1727364658498,6.3441,155.99,155.9,0.5156078]
[1727364658711,6.4115,155.97,155.9,0.5156078]
[1727364659079,12.7548,155.99,155.91,1.2826961]
[1727364659382,6.4111,155.98,155.91,1.2826961]
[1727364659683,12.7548,155.99,155.91,1.2826961]
[1727364659889,12.7548,155.99,155.9,0.5156078]
[1727364660391,23.776884,155.98,155.9,0.5156078]
[1727364660996,6.3441,155.99,155.91,1.28254323]
[1727364661382,15.2206,156.0,155.91,1.28254323]
[1727364661581,6.355,156.03,155.91,1.28254323]
[1727364661582,6.355,156.03,155.92,46.46027387]
[1727364661791,6.355,156.03,155.93,21.28215895]
[1727364662287,6.355,156.03,155.92,46.46027387]
[1727364662686,6.355,156.03,155.93,1.28212802]
[1727364662889,6.355,156.03,155.94,1.28221654]
[1727364663186,15.7407,156.05,155.95,0.12549]
[1727364664292,22.1489,156.05,155.94,46.25088764]
[1727364665119,6.355,156.08,155.95,1.40750289]
[1727364665294,6.355,156.08,155.96,1.28178241]
[1727364665486,6.4078,156.06,155.95,0.12549]
[1727364666314,6.4082,156.05,155.94,28.96312682]
[1727364666884,6.355,156.08,155.97,0.12549]
[1727364667082,12.7619,156.08,155.98,1.28176542]
[1727364667398,12.762,156.08,155.97,0.12549]
[1727364667798,6.355,156.08,155.97,0.12549]
[1727364668017,6.355,156.08,155.99,0.12549]
[1727364668204,15.9076,156.1,156.0,1.28159193]
[1727364668590,13.029,156.12,156.01,1.28152664]
[1727364669291,13.029,156.12,155.99,46.37637764]
[1727364669492,13.029,156.12,156.0,0.12549]
[1727364670095,6.6236,156.12,156.02,46.25088764]
[1727364670418,23.0146,156.15,156.04,0.12549]
[1727364670619,23.0146,156.15,156.05,1.2811355]
[1727364670785,46.25088764,156.08,155.92,8.39610033]
[1727364670990,46.25088764,156.08,155.93,46.25088764]
[1727364671217,46.25088764,156.05,155.94,1.28199626]
[1727364671593,46.25088764,156.05,155.9,49.04109544]
[1727364671816,46.25088764,156.08,155.9,49.04109544]
[1727364672116,6.4077,156.06,155.9,49.04109544]
[1727364672290,7.6894355,156.05,155.9,49.04109544]
[1727364672495,6.4083,156.05,155.9,49.04109544]
[1727364672712,6.4086,156.04,155.9,49.04109544]
[1727364672923,7.6897355,156.04,155.9,49.04109544]
[1727364673128,6.4074,156.07,155.93,46.25088764]
[1727364673300,21.9511,156.09,155.96,46.25088764]
[1727364673500,28.358,156.09,155.97,1.53265936]
[1727364674404,28.358,156.09,155.97,0.25098]
[1727364674716,21.9511,156.09,155.99,0.12549]
[1727364674918,68.94558764,156.14,156.0,25.18393943]
[1727364675222,68.94558764,156.14,156.01,0.25098]
[1727364675397,6.4051,156.13,156.01,1.53236263]
[1727364675717,6.4058,156.11,156.0,0.12549]
[1727364675923,7.6872355,156.1,156.0,0.25098]
[1727364676227,1.2811355,156.09,156.0,20.25098]
[1727364676524,68.94558764,156.14,156.0,20.25098]
[1727364676525,23.902374,156.13,156.0,20.12549]
[1727364676724,22.6947,156.14,156.02,46.25088764]
[1727364677021,0.4776329,156.17,156.06,0.12549]
[1727364677328,0.4776329,156.17,156.08,0.12549]
[1727364677631,0.4776329,156.17,156.09,1.28085385]
[1727364677919,0.4776329,156.17,156.06,20.0]
[1727364678102,0.4776329,156.17,156.06,0.12549]
[1727364678302,0.4776329,156.17,156.06,20.12549]
[1727364678512,0.4776329,156.17,156.05,0.12549]
[1727364678824,0.4776329,156.17,156.06,1.28112065]
[1727364679124,6.8812329,156.17,156.06,1.28112065]
[1727364679301,6.4037,156.16,156.05,46.50186764]
[1727364679500,0.4776329,156.17,156.08,46.25088764]
[1727364679705,0.4776329,156.17,156.1,0.12549]
[1727364680016,0.4023491,156.17,156.12,0.12549]
[1727364680609,0.4023491,156.17,156.13,1.28051714]
[1727364681307,0.4848703,156.23,156.18,0.12549]
[1727364681511,0.4848703,156.23,156.17,66.37637764]
[1727364682030,0.4848703,156.23,156.18,1.28005268]
[1727364682204,0.4848703,156.23,156.17,46.37637764]
[1727364682410,0.4848703,156.23,156.17,46.25088764]
[1727364682725,0.4848703,156.23,156.14,46.25088764]
[1727364682933,0.4848703,156.23,156.12,0.12549]
[1727364683233,0.4848703,156.23,156.14,20.0]
[1727364683604,0.4848703,156.23,156.15,1.28036208]
[1727364683803,0.4848703,156.23,156.16,1.28022265]
[1727364684629,0.4848703,156.23,156.17,70.27875164]
[1727364684832,0.4848703,156.23,156.2,46.25088764]
[1727364685029,0.4848703,156.23,156.21,1.27979317]
[1727364685235,0.4848703,156.23,156.22,0.12549]
[1727364685439,0.4848703,156.23,156.22,0.25098]
[1727364685927,0.4848703,156.23,156.22,0.12549]
[1727364686819,0.4848703,156.23,156.22,1.27972636]
[1727364687015,0.4848703,156.23,156.16,20.0]
[1727364687418,0.4848703,156.23,156.18,46.25088764]
[1727364687721,0.4848703,156.23,156.21,46.25088764]
[1727364687927,0.4848703,156.23,156.22,23.902374]
[1727364688303,0.4848703,156.23,156.22,0.12549]
[1727364688609,0.4848703,156.23,156.22,24.027864]
[1727364688836,0.4848703,156.23,156.17,21.8724]
[1727364689011,0.4848703,156.23,156.18,1.27981287]
[1727364689342,0.4848703,156.23,156.17,21.8724]
[1727364689625,0.4848703,156.23,156.17,20.0]
[1727364690037,0.4848703,156.23,156.16,28.92232258]
[1727364690201,0.4848703,156.23,156.16,75.17321022]
[1727364690406,0.4848703,156.23,156.19,46.25088764]
[1727364691223,0.4848703,156.23,156.2,1.27975714]
[1727364691421,0.4848703,156.23,156.2,44.027864]
[1727364691730,0.4848703,156.23,156.22,0.25098]
[1727364692429,0.4848703,156.23,156.2,23.776884]
[1727364692730,0.4848703,156.23,156.21,0.12549]
[1727364693131,0.0758817,156.25,156.21,0.12549]
[1727364693132,0.060752,156.25,156.21,0.12549]
[1727364693537,0.060752,156.25,156.2,23.776884]
[1727364693913,0.060752,156.25,156.17,20.0]
[1727364694111,0.060752,156.25,156.18,1.27981064]
[1727364694333,0.060752,156.25,156.17,20.0]
[1727364694752,0.060752,156.25,156.18,24.027864]
[1727364695033,0.060752,156.25,156.17,20.0]
[1727364696143,0.060752,156.25,156.18,24.027864]
[1727364696341,0.060752,156.25,156.17,20.0]
[1727364696544,0.060752,156.25,156.18,1.27995667]
[1727364696747,0.060752,156.25,156.17,20.0]
[1727364696955,0.060752,156.25,156.18,1.27968532]
[1727364697420,0.060752,156.25,156.19,1.27968527]
[1727364697614,0.060752,156.25,156.22,0.12549]
[1727364697924,0.060752,156.25,156.24,0.12549]
[1727364698123,0.060752,156.25,156.24,90.27875164]
[1727364698428,0.060752,156.25,156.24,91.5583153]
[1727364698634,0.060752,156.25,156.24,20.25098]
[1727364698948,0.060752,156.25,156.24,0.12549]
[1727364699155,0.060752,156.25,156.18,46.25088764]
[1727364699532,0.060752,156.25,156.16,28.9204706]
[1727364700626,0.060752,156.25,156.17,20.0]
[1727364701237,0.060752,156.25,156.18,0.25098]
[1727364701726,0.060752,156.25,156.18,24.027864]
[1727364702323,0.060752,156.25,156.18,0.25098]
[1727364702535,0.060752,156.25,156.17,20.0]
[1727364702742,15.076152,156.25,156.12,2.43003221]
[1727364702926,21.476152,156.25,156.12,2.43003221]
[1727364703132,15.076152,156.25,156.12,2.43003221]
[1727364703626,1.2811355,156.24,156.14,46.09797741]
[1727364703822,15.076152,156.25,156.14,46.09797741]
[1727364704143,15.076152,156.25,156.12,22.43003221]
[1727364704330,15.076152,156.25,156.09,12.15859989]
[1727364704331,23.776884,156.23,156.09,12.15859989]
[1727364704529,1.2811355,156.22,156.09,12.15859989]
[1727364704751,1.2811355,156.22,156.08,46.09797741]
[1727364704926,6.4026,156.19,156.08,46.09797741]
[1727364705329,1.2811355,156.18,156.08,46.09797741]
[1727364705846,15.2307,156.16,156.07,12.16015799]
[1727364706226,15.2307,156.16,156.06,6.69860461]
[1727364706452,15.2307,156.16,156.05,58.2596939]
[1727364706828,15.2307,156.16,156.06,6.70188224]
[1727364707344,1.2811355,156.15,156.05,46.09797741]
[1727364707539,21.6344,156.16,156.04,0.3710137]
[1727364707849,21.6344,156.16,156.04,7.07367541]
[1727364708234,15.2307,156.16,156.05,47.37901704]
[1727364708637,15.2307,156.16,156.06,0.25098]
[1727364709131,15.2307,156.16,156.06,24.027864]
[1727364709748,6.4049,156.13,156.04,6.84535671]
[1727364710057,1.2811355,156.12,156.04,0.142695]
[1727364710433,6.4049,156.13,156.04,0.142695]
[1727364710658,1.2811355,156.12,156.04,0.142695]
[1727364710867,6.3308,156.11,156.05,46.09797741]
[1727364711755,6.3308,156.11,156.06,0.12549]
[1727364712059,6.3308,156.11,156.08,46.09797741]
[1727364712253,6.3308,156.11,156.09,1.280923]
[1727364712651,6.3308,156.11,156.08,46.09797741]
[1727364713544,6.3308,156.11,156.06,0.12549]
[1727364714165,6.3308,156.11,156.05,46.09797741]
[1727364714468,6.3308,156.11,156.05,0.12549]
[1727364715558,6.3308,156.11,156.06,1.28118263]
[1727364715855,6.3308,156.11,156.05,46.09797741]
[1727364716656,6.3308,156.11,156.06,0.25098]
[1727364716955,6.3308,156.11,156.08,46.09797741]
[1727364717158,6.3308,156.11,156.06,0.25098]
[1727364717361,15.2307,156.16,156.09,21.53196748]
[1727364717362,6.385,156.15,156.09,21.53196748]
[1727364717661,22.8513,156.24,156.13,0.12549]
[1727364717961,1.2811355,156.23,156.13,0.12549]
[1727364718337,7.9102542,156.23,156.13,0.12549]
[1727364719149,23.776884,156.22,156.1,0.25098]
[1727364719350,6.4017,156.21,156.1,0.25098]
[1727364719551,6.4013,156.22,156.1,0.25098]
[1727364719754,24.0052027,156.23,156.1,0.25098]
[1727364719945,6.4016,156.21,156.1,0.25098]
[1727364720149,6.4021,156.2,156.1,0.12549]
[1727364720466,6.4021,156.2,156.09,20.0]
[1727364720467,15.2642,156.17,156.04,12.5033964]
[1727364720643,7.6848355,156.16,156.04,12.5033964]
[1727364720959,6.4045,156.14,156.04,0.142695]
[1727364721165,7.6862355,156.13,156.04,0.142695]
[1727364721340,15.2642,156.17,156.04,0.142695]
[1727364721341,6.4054,156.12,156.04,0.142695]
[1727364721545,6.2652,156.14,156.04,0.142695]
[1727364721746,6.4049,156.13,156.04,0.142695]
[1727364722151,12.6697,156.14,156.04,0.142695]
[1727364722361,6.2652,156.14,156.05,1.2812205]
[1727364722560,6.2652,156.14,156.04,0.142695]
[1727364722768,6.2652,156.14,156.05,1.28102283]
[1727364723264,6.2652,156.14,156.04,0.142695]
[1727364723460,6.2652,156.14,156.06,1.28101602]
[1727364723844,6.2652,156.14,156.05,0.25098]
[1727364724652,6.2652,156.14,156.06,1.2810586]
[1727364724963,6.2652,156.14,156.07,0.12549]
[1727364725141,6.2652,156.14,156.09,0.12549]
[1727364725341,6.2652,156.14,156.08,46.09797741]
[1727364725653,6.2652,156.14,156.06,0.12549]
[1727364725858,6.2652,156.14,156.08,46.22346741]
[1727364726167,6.2652,156.14,156.11,46.09797741]
[1727364726668,6.2652,156.14,156.09,0.25098]
[1727364726847,6.2652,156.14,156.08,46.09797741]
[1727364727271,6.2652,156.14,156.05,89.87486141]
[1727364727546,6.2652,156.14,156.06,0.25098]
[1727364728173,6.2652,156.14,156.08,46.09797741]
[1727364728475,6.2652,156.14,156.09,0.12549]
[1727364729042,6.2652,156.14,156.08,46.09797741]
[1727364729953,6.2652,156.14,156.06,0.12549]
[1727364730175,6.2652,156.14,156.04,0.142695]
[1727364730378,6.2652,156.14,156.05,1.28118761]
[1727364730951,6.2652,156.14,156.07,46.09797741]
[1727364731151,6.2652,156.14,156.1,46.09797741]
[1727364731357,6.2652,156.14,156.11,1.28070084]
[1727364731564,15.2642,156.17,156.13,46.09797741]
[1727364731770,15.2642,156.17,156.14,1.28056106]
[1727364732085,15.2642,156.17,156.13,46.09797741]
[1727364732379,15.5082,156.21,156.17,0.25098]
[1727364732552,15.5082,156.21,156.16,46.09797741]
[1727364733180,15.5082,156.21,156.14,20.12549]
[1727364733375,15.5082,156.21,156.14,0.12549]
[1727364733679,15.5082,156.21,156.13,46.09797741]
[1727364733878,15.5082,156.21,156.14,0.12549]
[1727364734186,16.7893355,156.21,156.09,20.0]
[1727364734360,23.776884,156.2,156.09,20.0]
[1727364734674,1.2811355,156.19,156.09,20.0]
[1727364734873,23.776884,156.2,156.1,1.28071041]
[1727364735047,15.5082,156.21,156.11,46.09797741]
[1727364735253,15.5082,156.21,156.14,46.09797741]
[1727364736464,15.5082,156.21,156.17,46.09797741]
[1727364736977,15.5082,156.21,156.14,46.09797741]
[1727364737380,15.5082,156.21,156.15,1.28039957]
[1727364737576,15.5082,156.21,156.17,46.09797741]
[1727364738670,15.5082,156.21,156.14,46.09797741]
[1727364739165,15.5082,156.21,156.17,46.09797741]
[1727364740584,15.7084361,156.21,156.17,46.09797741]
[1727364741481,15.7084361,156.21,156.2,46.09797741]
[1727364741852,0.2002361,156.21,156.2,46.09797741]
[1727364744065,0.2002361,156.21,156.17,46.09797741]
[1727364744889,0.2002361,156.21,156.14,46.09797741]
[1727364746083,0.2002361,156.21,156.15,1.28031742]
[1727364746264,0.2002361,156.21,156.17,46.09797741]
[1727364746467,0.2002361,156.21,156.18,1.28021938]
[1727364746675,0.2002361,156.21,156.17,46.09797741]
[1727364747075,0.2002361,156.21,156.14,46.09797741]
[1727364747580,0.2002361,156.21,156.17,46.09797741]
[1727364747786,0.2002361,156.21,156.2,46.09797741]
[1727364749890,0.2002361,156.21,156.17,46.09797741]
[1727364750392,228.100076,156.28,156.27,70.12549]
[1727364750688,472.2569879,156.37,156.31,31.0275777]
[1727364750899,472.2569879,156.37,156.33,46.09797741]
[1727364750900,461.08845409,156.37,156.33,46.09797741]
[1727364751389,461.08845409,156.37,156.3,69.87486141]
[1727364751567,461.08845409,156.37,156.33,46.09797741]
[1727364752961,461.08845409,156.37,156.36,46.09797741]
[1727364753169,428.0339544,156.37,156.36,52.31654515]
[1727364753363,265.89479053,156.37,156.36,52.31654515]
[1727364755577,265.89479053,156.37,156.36,6.21856774]
[1727364756372,487.83251818,156.47,156.38,20.0]
[1727364756373,482.41104849,156.47,156.38,20.0]
[1727364756583,482.41104849,156.47,156.42,46.09797741]
[1727364756799,482.41104849,156.47,156.43,6.21856774]
[1727364756993,482.41104849,156.47,156.44,6.21856774]
[1727364757177,482.41104849,156.47,156.45,52.31654515]
[1727364757381,482.41104849,156.47,156.46,6.17939505]
[1727364757591,482.41104849,156.47,156.42,46.09797741]
[1727364757894,482.41104849,156.47,156.43,6.18042501]
[1727364758089,482.41104849,156.47,156.45,46.09797741]
[1727364758496,482.41104849,156.47,156.42,46.09797741]
[1727364759193,482.41104849,156.47,156.39,46.09797741]
[1727364759776,23.776884,156.46,156.39,46.09797741]
[1727364760208,23.776884,156.44,156.4,9.86322058]
[1727364760499,15.6761,156.45,156.39,46.09797741]
[1727364760706,23.776884,156.44,156.39,46.09797741]
[1727364760878,15.6761,156.45,156.42,46.09797741]
[1727364761275,482.41104849,156.47,156.42,46.09797741]
[1727364761677,482.41104849,156.47,156.45,45.93203432]
[1727364761885,482.41104849,156.47,156.43,9.84283331]
[1727364762074,482.41104849,156.47,156.42,45.93203432]
[1727364762902,23.776884,156.46,156.39,45.93203432]
[1727364763199,23.776884,156.46,156.42,45.93203432]
[1727364763403,482.41104849,156.47,156.4,28.43387457]
[1727364763585,482.41104849,156.47,156.4,9.844955]
[1727364764307,482.41104849,156.47,156.41,9.844955]
[1727364764606,23.776884,156.46,156.4,9.844955]
[1727364765111,482.41104849,156.47,156.4,9.844955]
[1727364765287,482.41104849,156.47,156.4,9.67934843]
[1727364766105,482.41104849,156.47,156.41,9.67934843]
[1727364766276,23.776884,156.46,156.41,9.67934843]
[1727364766480,23.776884,156.46,156.42,20.29606492]
[1727364766788,23.776884,156.46,156.43,9.67934843]
[1727364766991,482.41104849,156.47,156.44,9.67934843]
[1727364767195,482.41104849,156.47,156.39,46.05752432]
[1727364767196,23.776884,156.46,156.43,9.67934843]
[1727364767388,23.776884,156.46,156.44,9.67934843]
[1727364767686,23.776884,156.46,156.4,9.67934843]
[1727364767884,23.776884,156.46,156.41,9.67934843]
[1727364768083,23.776884,156.46,156.42,9.67934843]
[1727364768301,23.776884,156.46,156.43,9.67934843]
[1727364768609,23.776884,156.46,156.44,9.67934843]
[1727364768793,23.776884,156.46,156.45,9.67934843]
[1727364768999,23.776884,156.46,156.43,10.95764653]
[1727364769305,23.776884,156.46,156.44,9.67934843]
[1727364769516,23.776884,156.46,156.41,11.65425619]
[1727364769517,482.41104849,156.47,156.45,9.65128687]
[1727364769804,482.41104849,156.47,156.46,9.65128687]
[1727364771096,482.41104849,156.47,156.46,10.92927588]
[1727364771286,482.41104849,156.47,156.46,21.54599237]
[1727364772424,450.88819611,156.47,156.46,60.31605881]
[1727364772607,320.80763039,156.47,156.46,60.31605881]
[1727364772916,320.80763039,156.47,156.46,87.6715454]
[1727364774304,317.70763039,156.47,156.46,87.6715454]
[1727364775499,187.62706467,156.47,156.46,87.4205654]
[1727364776018,187.62706467,156.47,156.46,99.07482159]
[1727364776326,187.62706467,156.47,156.46,69.07482159]
[1727364776895,187.62706467,156.47,156.46,69.32580159]
[1727364777090,187.62706467,156.47,156.46,69.07482159]
[1727364777295,187.62706467,156.47,156.46,9.65128687]
[1727364777700,187.62706467,156.47,156.45,1.27803238]
[1727364778296,187.62706467,156.47,156.43,28.26666782]
[1727364780412,187.62706467,156.47,156.44,0.25098]
[1727364780614,187.24298971,156.47,156.44,0.25098]
[1727364780819,187.05095838,156.47,156.43,28.26666782]
[1727364781207,187.05095838,156.47,156.44,39.28047978]
[1727364782801,187.05095838,156.47,156.45,29.79563752]
[1727364782998,187.05095838,156.47,156.45,28.51764782]
[1727364783202,187.05095838,156.47,156.46,20.0]
[1727364783399,161.25134106,156.47,156.46,20.25098]
[1727364784421,0.2823804,156.48,156.46,79.02884601]
[1727364784625,502.69503546,156.56,156.48,20.0]
[1727364784918,502.69503546,156.56,156.5,48.26666782]
[1727364785120,502.69503546,156.56,156.51,20.0]
[1727364785728,502.69503546,156.56,156.55,48.26666782]
[1727364785925,502.69503546,156.56,156.55,87.51954714]
[1727364786933,502.69503546,156.56,156.55,67.51954714]
[1727364787101,502.69503546,156.56,156.55,39.25287932]
[1727364787311,502.69503546,156.56,156.55,67.51954714]
[1727364787512,372.69035144,156.56,156.55,67.51954714]
[1727364787716,372.69035144,156.56,156.55,87.51954714]
[1727364788401,372.69035144,156.56,156.55,87.64503714]
[1727364788623,372.61446974,156.56,156.55,67.77052714]
[1727364788809,372.61446974,156.56,156.55,74.50484133]
[1727364788810,358.73442099,156.56,156.55,74.50484133]
[1727364789011,358.73442099,156.56,156.55,102.77150915]
[1727364789225,241.57367025,156.56,156.55,153.79664698]
[1727364789410,139.75035871,156.56,156.55,168.56377212]
[1727364789615,111.27035871,156.56,156.55,175.89596977]
[1727364789916,54.31035871,156.56,156.55,168.43089136]
[1727364790099,32.95035871,156.56,156.55,103.29709281]
[1727364790301,0.1138566,156.6,156.56,20.0]
[1727364790624,0.1138566,156.69,156.59,28.26666782]
[1727364791133,7.8261,156.65,156.56,35.3846449]
[1727364791512,7.8261,156.65,156.59,28.26666782]
[1727364791824,7.8261,156.65,156.6,1.27648827]
[1727364792026,7.8261,156.65,156.59,35.00098201]
[1727364792331,7.8261,156.65,156.6,1.27649789]
[1727364792634,0.1138566,156.69,156.61,1.27650521]
[1727364792935,0.1138566,156.69,156.6,6.73431419]
[1727364793229,0.1138566,156.69,156.6,34.94765519]
[1727364793433,0.1138566,156.69,156.6,74.18800166]
[1727364793806,0.1138566,156.69,156.61,0.12549]
[1727364794018,0.1138566,156.69,156.6,74.18800166]
[1727364795411,0.1138566,156.69,156.61,1.40200263]
[1727364795827,0.1138566,156.69,156.61,8.13631682]
[1727364796031,0.1138566,156.69,156.61,8.26180682]
[1727364796225,0.1138566,156.69,156.61,26.98529419]
[1727364796537,0.1138566,156.69,156.65,28.213341]
[1727364797618,0.1138566,156.69,156.64,0.12549]
[1727364797924,0.1138566,156.69,156.65,39.22782162]
[1727364798810,0.1138566,156.69,156.63,39.2328306]
[1727364799937,0.1138566,156.69,156.64,1.27659969]
[1727364800125,0.1138566,156.69,156.63,39.2328306]
[1727364800330,0.1138566,156.69,156.58,28.213341]
[1727364800331,0.1138566,156.69,156.6,39.24034647]
[1727364800831,23.776884,156.65,156.6,39.24034647]
[1727364802837,21.2115,156.64,156.6,39.24034647]
[1727364803044,23.776884,156.63,156.57,39.24786522]
[1727364803838,23.776884,156.61,156.57,39.24786522]
[1727364804212,23.776884,156.61,156.54,39.25538685]
[1727364805018,23.776884,156.61,156.5,39.26542017]
[1727364805019,23.776884,156.59,156.5,39.26542017]
[1727364805223,1.1557355,156.58,156.5,39.26542017]
[1727364805834,23.776884,156.57,156.5,39.26542017]
[1727364806027,23.776884,156.57,156.49,6.67788894]
[1727364806354,23.776884,156.57,156.5,1.27769045]
[1727364806525,23.776884,156.57,156.49,6.67788894]
[1727364806727,23.776884,156.57,156.5,1.27765089]
[1727364807225,23.776884,156.57,156.49,6.67788894]
[1727364807433,23.776884,156.57,156.51,1.2776466]
[1727364807743,23.776884,156.57,156.49,6.67788894]
[1727364807931,23.776884,156.55,156.49,6.67788894]
[1727364808133,11.0066,156.56,156.49,6.67788894]
[1727364808325,11.0066,156.56,156.5,1.27765818]
[1727364808651,23.776884,156.55,156.5,1.27765818]
[1727364808949,23.776884,156.55,156.49,6.67788894]
[1727364809829,23.776884,156.55,156.5,1.27773125]
[1727364810227,11.0066,156.56,156.5,1.27773125]
[1727364810742,11.0066,156.56,156.49,45.94581825]
[1727364811127,11.0066,156.56,156.49,74.15915925]
[1727364811330,11.0066,156.56,156.49,82.30981709]
[1727364811535,11.0066,156.56,156.49,74.15915925]
[1727364812241,11.0066,156.56,156.49,82.30981709]
[1727364812446,32.1232,156.6,156.52,28.213341]
[1727364812744,32.1232,156.6,156.49,74.15915925]
[1727364812952,32.1232,156.6,156.49,67.48127031]
[1727364813244,32.1232,156.6,156.5,7.9587221]
[1727364813427,32.1232,156.6,156.51,0.12549]
[1727364813635,32.1232,156.6,156.51,15.00877449]
[1727364813841,32.1232,156.6,156.54,28.213341]
[1727364815221,32.1232,156.6,156.55,1.27706226]
[1727364815537,32.1232,156.6,156.54,36.36399884]
[1727364815729,32.1232,156.6,156.54,34.94596765]
[1727364816349,32.1232,156.6,156.55,1.27704819]
[1727364816650,32.1232,156.6,156.54,43.09662549]
[1727364817332,32.1232,156.6,156.55,1.27702053]
[1727364817521,32.1232,156.6,156.54,43.09662549]
[1727364818451,32.1232,156.6,156.54,34.94596765]
[1727364818839,32.1232,156.6,156.54,45.9880135]
[1727364819045,32.1232,156.6,156.54,39.25538685]
[1727364819249,23.776884,156.59,156.54,39.25538685]
[1727364820232,23.776884,156.59,156.55,1.27734498]
[1727364820426,23.776884,156.59,156.54,39.25538685]
[1727364822142,23.776884,156.59,156.55,1.27721279]
[1727364822450,32.1232,156.6,156.55,1.27721279]
[1727364822830,32.1232,156.6,156.54,39.25538685]
[1727364823029,32.1232,156.6,156.55,29.49048065]
[1727364823227,0.3971316,156.63,156.58,28.213341]
[1727364823430,0.3971316,156.63,156.62,28.213341]
[1727364824145,0.3971316,156.63,156.62,48.213341]
[1727364824325,29.0238,156.65,156.62,48.213341]
[1727364824851,29.0238,156.65,156.59,34.94596765]
[1727364825230,29.0238,156.65,156.59,6.73262665]
[1727364825436,29.0238,156.65,156.57,4.11484867]
[1727364825437,30.1795355,156.65,156.57,4.11484867]
[1727364825648,29.0238,156.65,156.62,28.213341]
[1727364825852,517.91405924,156.66,156.64,28.213341]
[1727364826029,517.91405924,156.66,156.65,1.27646216]
[1727364826230,517.91405924,156.66,156.65,8.15065784]
[1727364826447,517.91405924,156.66,156.65,28.213341]
[1727364826448,356.55265226,156.66,156.65,28.213341]
[1727364826737,170.16369434,156.66,156.65,67.60712987]
[1727364826949,17.47408492,156.66,156.65,109.56760783]
[1727364827144,0.1138566,156.69,156.68,20.0]
[1727364827485,0.5217183,156.79,156.68,20.0]
[1727364827486,0.5217183,156.79,156.68,39.49610015]
[1727364827487,527.05828071,156.76,156.68,39.49610015]
[1727364827628,527.05828071,156.76,156.72,28.213341]
[1727364827823,527.05828071,156.76,156.73,19.37061015]
[1727364828075,527.05828071,156.76,156.74,20.0]
[1727364828225,527.05828071,156.76,156.73,20.64617523]
[1727364828226,527.05828071,156.76,156.73,8.57380417]
[1727364828657,527.05828071,156.76,156.69,0.12549]
[1727364828858,527.05828071,156.76,156.7,28.213341]
[1727364829061,527.05828071,156.76,156.67,28.213341]
[1727364829424,11.8295,156.74,156.65,39.22782126]
[1727364829850,11.8295,156.74,156.65,67.44116226]
[1727364830242,30.1647,156.75,156.71,28.213341]
[1727364830449,30.1647,156.75,156.74,28.213341]
[1727364830781,30.1647,156.75,156.68,28.213341]
[1727364830955,30.1647,156.75,156.66,0.25098]
[1727364831151,30.1647,156.75,156.65,67.44116226]
[1727364831371,30.1647,156.75,156.66,1.27595142]
[1727364831674,30.1647,156.75,156.67,1.27590308]
[1727364832048,30.1647,156.75,156.65,67.44116226]
[1727364832049,30.1647,156.75,156.63,5.91602639]
[1727364832368,11.0366,156.73,156.63,39.23032559]
[1727364832565,1.1557355,156.72,156.63,39.23032559]
[1727364832755,24.9326195,156.72,156.63,39.23032559]
[1727364832961,29.6342,156.7,156.63,39.23032559]
[1727364833163,29.6342,156.7,156.61,1.27663252]
[1727364833369,11.9989,156.69,156.61,1.27658207]
[1727364833552,27.6021,156.68,156.57,11.92800087]
[1727364833756,27.6021,156.68,156.58,1.27679133]
[1727364833962,27.6021,156.68,156.59,28.213341]
[1727364834162,10.05660352,156.61,156.59,28.213341]
[1727364834502,27.6021,156.68,156.6,34.12936739]
[1727364834707,27.6021,156.68,156.61,1.27642967]
[1727364834999,27.6021,156.68,156.62,28.213341]
[1727364835181,28.213341,156.78,156.62,28.213341]
[1727364835182,27.6021,156.73,156.62,28.213341]
[1727364835378,27.6021,156.73,156.65,28.213341]
[1727364835596,27.6021,156.73,156.66,1.27612192]
[1727364835802,27.6021,156.73,156.65,28.213341]
[1727364836676,27.6021,156.73,156.66,1.27598604]
[1727364836894,27.6021,156.73,156.65,28.213341]
[1727364837594,27.6021,156.73,156.66,1.27609392]
[1727364838001,27.6021,156.73,156.66,28.213341]
[1727364838494,27.6021,156.73,156.69,28.213341]
[1727364838677,28.8325,156.77,156.69,28.213341]
[1727364838878,28.8325,156.77,156.66,43.24346068]
[1727364839096,28.8325,156.77,156.67,1.27594176]
[1727364839405,28.8325,156.77,156.67,0.12549]
[1727364839580,28.8325,156.77,156.69,28.213341]